fUSD/lending_fUSD_20240421
["ID","MTS","AMOUNT","RATE_DAILY","PERIOD"]
[323123726,1713688238525,-158.05660954,0.00014737,2]
[323123727,1713688238535,-857.49,0.00014785,2]
[323123728,1713688238545,-323.80854154,0.00015,2]
[323123729,1713688238554,-158.77,0.00015021,2]
[323123730,1713688238565,-261.14,0.00015028,2]
[323123731,1713688238574,-5000.0,0.0001504,2]
[323123732,1713688238582,-1312.22,0.00015041,2]
[323123733,1713688238592,-241.41927156,0.00015101,2]
[323123734,1713688238601,-7268.88,0.00015101,2]
[323123735,1713688238610,-759.3,0.00015101,2]
[323123737,1713688238619,-150.99,0.00015101,2]
[323123739,1713688238629,-619.42,0.00015101,2]
[323123741,1713688238638,-158.05660954,0.00015267,2]
[323123742,1713688238647,-150.37,0.00015478,2]
[323123743,1713688238657,-150.0,0.000155,2]
[323123744,1713688238666,-272.344055,0.00015616,2]
[323123746,1713688238676,-5273.4375,0.00015796,2]
[323123749,1713688238687,-158.05660954,0.00015796,2]
[323123752,1713688238697,-816.6188,0.00015798,2]
[323123755,1713688238706,-4313.0588,0.00015798,2]
[323123758,1713688238715,-32465.7392,0.000158,2]
[323123761,1713688238725,-344.2,0.00015808,2]
[323123766,1713688238734,-150.0,0.00015808,2]
[323123771,1713688238742,-150.0,0.00015808,2]
[323123775,1713688238751,-150.0,0.00015808,2]
[323123778,1713688238759,-150.0,0.00015808,2]
[323123779,1713688238768,-150.0,0.00015808,2]
[323123784,1713688238778,-168.36,0.00015831,2]
[323123787,1713688238787,-161.38704495,0.0001584,2]
[323123790,1713688238796,-759.72647,0.0001584,2]
[323123793,1713688238805,-1000.0,0.00015872,2]
[323123796,1713688238816,-500.0,0.00015872,2]
[323123798,1713688238825,-151.34,0.0001588,2]
[323123801,1713688238834,-8860.24573339,0.0001588,4]
[323123804,1713688238843,-151.34,0.00015888,2]
[323123806,1713688238855,-537.58418051,0.00015889,2]
[323123808,1713688238864,-26584.97675774,0.0001589,5]
[323123811,1713688238889,-4271.7460484,0.0001589,5]
[323123814,1713688238899,-42847.80827974,0.0001589,5]
[323123816,1713688238911,-55293.09760826,0.0001589,5]
[323123818,1713688238922,-4852.6012,0.0001589,5]
[323123823,1713688238954,-17936.93518799,0.0001589,5]
[323123833,1713688239046,-12925.148726,0.0001589,5]
[323123967,1713688240301,-342.77116761,0.00015888,2]
[323123969,1713688240311,-345.7150033,0.0001589,5]
[323123971,1713688240322,-774.040005,0.0001589,5]
[323123982,1713688240414,-3568.30983469,0.0001589,5]
[323123984,1713688240425,-303.27304,0.0001589,5]
[323123986,1713688240436,-751.23199635,0.0001589,5]
[323123991,1713688240474,-4206.95379858,0.0001589,5]
[323124009,1713688240636,-1600.0,0.0001589,5]
[323124011,1713688240648,-3082.04812006,0.0001589,5]
[323124135,1713688242554,2025.14271254,0.0001158,2]
[323124151,1713688243223,-463.3999995,0.0001589,5]
[323124159,1713688243279,-1587.2103,0.0001589,5]
[323124161,1713688243291,-1138.0,0.0001589,5]
[323124166,1713688243334,-1732.275,0.0001589,5]
[323124173,1713688243388,-31518.47478038,0.0001589,5]
[323124174,1713688243444,-346.494995,0.0001589,5]
[323124175,1713688243457,-13837.72059739,0.0001589,5]
[323124176,1713688243503,-476.11334526,0.0001589,5]
[323124177,1713688243557,-508.1055248,0.0001589,5]
[323124178,1713688243570,-451.45712628,0.0001589,5]
[323124179,1713688243582,-644.915433,0.0001589,5]
[323124180,1713688243669,-94942.10226195,0.0001589,5]
[323124181,1713688243681,-438275.66176176,0.0001589,5]
[323124297,1713688246700,-155.5395067,0.00015889,2]
[323124298,1713688246709,-920.53160418,0.00015889,2]
[323124299,1713688246719,-1844.70405548,0.0001589,5]
[323124300,1713688246868,-19041.96657256,0.0001589,5]
[323124301,1713688246880,-431.96925012,0.0001589,5]
[323124302,1713688246893,-380.48796387,0.0001589,5]
[323124303,1713688246904,-24995.630268,0.0001589,5]
[323124304,1713688246915,-147792.80441126,0.0001589,5]
[323124305,1713688246926,-257.33087692,0.00015896,2]
[323124306,1713688246937,-426.81421058,0.00015896,2]
[323124307,1713688246945,-487.16370468,0.00015896,2]
[323124308,1713688246955,-7767.6770067,0.00015896,2]
[323124309,1713688246964,-12290.0998749,0.00015897,2]
[323124310,1713688246975,-315.03036068,0.00015898,2]
[323124311,1713688246984,-195.04707961,0.00015898,2]
[323124312,1713688246994,-210.59510764,0.00015898,2]
[323124313,1713688247003,-180.16217754,0.00015898,2]
[323124314,1713688247013,-181.03262709,0.00015898,2]
[323124315,1713688247024,-15665.08577847,0.00015898,2]
[323124316,1713688247034,-299.447958,0.00015898,2]
[323124317,1713688247043,-73752.4417216,0.00015898,2]
[323124318,1713688247172,-200.0,0.00015124,2]
[323124319,1713688247181,-55.5202649,0.00015898,2]
[323124327,1713688451956,170.1597463,0.00011986,2]
[323124328,1713688502585,2000.0,0.000273,120]
[323124329,1713688544436,183.39,0.00011548,2]
[323124334,1713688756966,-174.38465913,0.00012075,2]
[323124335,1713688756988,-1825.61534087,0.00012075,2]
[323124336,1713688757730,-2000.0,0.00012075,2]
[323124337,1713688758568,-505.29156017,0.00012075,2]
[323124338,1713688758589,-1494.70843983,0.00012075,2]
[323124339,1713688765217,-5.29156017,0.00012075,2]
[323124340,1713688765238,-1744.70843983,0.00012075,2]
[323124341,1713688820545,2539.6742244,0.00012,2]
[323124342,1713688896503,455.6341,0.00011978,2]
[323124343,1713688930547,818.15,0.00011992,2]
[323124346,1713688990868,262.53146218,0.00011992,2]
[323124347,1713689064366,165.14655594,0.00022,30]
[323124349,1713689158019,150.0,0.000224,30]
[323124354,1713689414899,777.24,0.00011938,2]
[323124359,1713689431465,-325.625,0.00012053,2]
[323124360,1713689431611,-679.08777155,0.00012053,2]
[323124361,1713689431624,-289.04855459,0.00012053,2]
[323124362,1713689431633,-4330.90690104,0.00012054,2]
[323124363,1713689431642,-712.50304557,0.00012055,2]
[323124364,1713689431652,-922.98932752,0.00012055,2]
[323124365,1713689431661,-235.38007128,0.00012055,2]
[323124366,1713689431679,-512.09689385,0.00012055,2]
[323124367,1713689431704,-3657.55051825,0.00012055,2]
[323124368,1713689431713,-712.50304557,0.00012055,2]
[323124369,1713689431722,-150.0,0.00012058,2]
[323124370,1713689431731,-150.0,0.00012058,2]
[323124371,1713689431741,-2645.58540793,0.00012061,2]
[323124372,1713689437703,-500.6964493,0.00012061,2]
[323124536,1713689439525,-1359.91543932,0.00012061,2]
[323124549,1713689439639,-393.80270345,0.00012061,2]
[323124551,1713689439649,-170.1597463,0.0001329,2]
[323124553,1713689439658,-198.4365483,0.00013808,2]
[323124566,1713689439768,-1.5634517,0.00013808,2]
[323124568,1713689439778,-1518.38667244,0.00013845,2]
[323124571,1713689439794,-1186.61332756,0.00013845,2]
[323124573,1713689439803,-3719.4059635,0.00013846,2]
[323124866,1713689442717,-3483.46801041,0.00013846,2]
[323124871,1713689442757,-0.0049298,0.00013846,2]
[323124873,1713689442770,-3176.07109629,0.00013846,2]
[323124876,1713689442780,-150.0,0.00013863,2]
[323124878,1713689442790,-429.37,0.00013866,2]
[323124880,1713689442801,-200.0,0.00013875,2]
[323124882,1713689442811,-800.0,0.00013876,2]
[323124884,1713689442823,-250.0,0.00013895,2]
[323124886,1713689442834,-500.0,0.00013908,2]
[323124888,1713689442843,-499.99,0.00013908,2]
[323124890,1713689442853,-2323.68,0.00013911,2]
[323124892,1713689442866,-469.84,0.00013947,2]
[323124894,1713689442875,-150.0,0.00013992,2]
[323124896,1713689442885,-913.29,0.00014002,2]
[323124898,1713689442895,-164.94,0.00014039,2]
[323124900,1713689442905,-777.24,0.00014202,2]
[323124902,1713689442914,-200.0,0.00014389,2]
[323124904,1713689442924,-174.59,0.00014421,2]
[323124906,1713689442933,-174.59,0.00014436,2]
[323124908,1713689442942,-174.59,0.0001445,2]
[323124910,1713689442952,-174.59,0.00014464,2]
[323124913,1713689442962,-174.59,0.00014479,2]
[323124915,1713689442973,-174.59,0.00014493,2]
[323124917,1713689442983,-17208.63,0.00014504,2]
[323124919,1713689442992,-170.1597463,0.00014594,2]
[323124921,1713689443002,-167.41,0.00014698,2]
[323124923,1713689443011,-245.55408308,0.0001477,2]
[323124925,1713689443021,-164.94,0.00014771,2]
[323124927,1713689443030,-323.80854154,0.00015,2]
[323124929,1713689443039,-5000.0,0.0001504,2]
[323124931,1713689443048,-851.31,0.00015041,2]
[323124933,1713689443058,-909.46,0.00015041,2]
[323124935,1713689443067,-500.0,0.00015068,2]
[323124937,1713689443076,-1116.88,0.00015123,2]
[323124939,1713689443086,-705.35,0.00015178,2]
[323124941,1713689443095,-500.0,0.00015342,2]
[323124943,1713689443104,-575.15,0.00015378,2]
[323124945,1713689443115,-150.65,0.00015378,2]
[323124947,1713689443124,-150.0,0.000155,2]
[323124949,1713689443133,-800.0,0.0001561,2]
[323124951,1713689443143,-500.0,0.00015616,2]
[323124953,1713689443152,-415.4125,0.00015698,2]
[323124955,1713689443162,-194.58247,0.0001574,2]
[323124957,1713689443171,-1781.79495137,0.00015796,2]
[323124959,1713689443180,-500.0,0.00015797,2]
[323124961,1713689443190,-124119.5483,0.00015798,2]
[323124963,1713689443200,-304.935,0.000158,2]
[323124965,1713689443209,-1000.0,0.00015872,2]
[323124967,1713689443219,-500.0,0.00015872,2]
[323124969,1713689443228,-161.72901215,0.00015888,2]
[323124970,1713689443237,-8335.34454698,0.00015888,2]
[323124971,1713689443246,-3012.65738212,0.00015889,2]
[323124972,1713689443255,-500.0,0.0001589,2]
[323124973,1713689443265,-1544.04529612,0.00015896,2]
[323124974,1713689443274,-872.23711713,0.00015896,2]
[323124975,1713689443283,-378.94447879,0.00015897,2]
[323124976,1713689443293,-170.1597463,0.00015898,2]
[323124977,1713689443302,-3916.8716,0.00015898,2]
[323124978,1713689443311,-7705.98398272,0.00015899,2]
[323124979,1713689443328,-2294.01601728,0.00015899,2]
[323124980,1713689443337,-2317.16,0.00015899,2]
[323124981,1713689443346,-173.80588472,0.00015899,2]
[323124982,1713689443358,-180.16217753,0.00015899,2]
[323124983,1713689443367,-14359.66196357,0.00015899,2]
[323124984,1713689443377,-239.5583664,0.00015899,2]
[323124985,1713689443386,-150.0,0.000159,2]
[323124986,1713689443395,-794.1455905,0.000159,2]
[323124987,1713689443417,-1836.89131388,0.000159,2]
[323125003,1713689445528,-884.75149789,0.000159,2]
[323125004,1713689445586,-295.47578606,0.000159,2]
[323125005,1713689445598,-978.66,0.000159,2]
[323125133,1713690631595,-162.912235,0.00012731,2]
[323125134,1713690631605,-765.79,0.00012732,2]
[323125135,1713690631615,-156.77121027,0.000139,2]
[323125136,1713690631625,-1750.0,0.00014,2]
[323125138,1713690631634,-413.3233314,0.0001457,2]
[323125142,1713690631700,-1275.2266686,0.0001457,2]
[323125143,1713690631710,-970.29,0.00014583,2]
[323125144,1713690631719,-456.64,0.00014619,2]
[323125145,1713690631728,-500.0,0.00014627,2]
[323125146,1713690631738,-167.41,0.00014746,2]
[323125147,1713690631747,-188.83,0.00014766,2]
[323125148,1713690631756,-337.01,0.00014766,2]
[323125149,1713690631765,-1958.96392281,0.00014766,2]
[323125150,1713690631783,-271.86607719,0.00014766,2]
[323125151,1713690631792,-59.17479756,0.00014903,2]
[323125152,1713690631812,-540.396828,0.00014903,2]
[323125153,1713690631824,-285.099995,0.00014903,2]
[323125167,1713690637627,-150.0,0.00014627,2]
[323125168,1713690637636,-115.32837944,0.00014903,2]
[323125169,1713690637645,-765.79,0.00014996,2]
[323125170,1713690637655,-6265.74686571,0.00015,2]
[323125171,1713690637665,-1634.66308696,0.00015,2]
[323125172,1713690637675,-932.43526564,0.00015,2]
[323125173,1713690637684,-323.80854154,0.00015005,2]
[323125174,1713690637693,-830.37369514,0.00015006,2]
[323125175,1713690637703,-381.95,0.00015068,2]
[323125176,1713690637712,-159.89,0.00015109,2]
[323125177,1713690637721,-1226.49756196,0.000155,2]
[323125178,1713690637730,-150.0,0.000155,2]
[323125179,1713690637740,-1041.69,0.00015565,2]
[323125180,1713690637749,-300.44,0.00015565,2]
[323125181,1713690637758,-150.0,0.00015565,2]
[323125182,1713690637768,-301.48,0.00015565,2]
[323125183,1713690637777,-150.0,0.00015565,2]
[323125184,1713690637786,-150.0,0.00015565,2]
[323125185,1713690637796,-162.73,0.00015565,2]
[323125186,1713690637805,-150.0,0.00015565,2]
[323125187,1713690637815,-150.0,0.00015565,2]
[323125188,1713690637825,-150.0,0.00015565,2]
[323125189,1713690637834,-162.73,0.00015565,2]
[323125190,1713690637844,-161.15,0.00015565,2]
[323125191,1713690637854,-150.0,0.00015565,2]
[323125192,1713690637866,-150.0,0.00015565,2]
[323125193,1713690637875,-27171.231,0.00015698,2]
[323125194,1713690637884,-3377.4857,0.00015698,2]
[323125195,1713690637893,-166.86,0.00015831,2]
[323125196,1713690637902,-200.0,0.00015847,2]
[323125197,1713690637911,-1000.0,0.0001587,2]
[323125198,1713690637921,-200.0,0.00015871,2]
[323125199,1713690637930,-1000.0,0.00015871,2]
[323125200,1713690637940,-200.0,0.00015871,2]
[323125201,1713690637949,-200.0,0.00015871,2]
[323125202,1713690637958,-1000.0,0.00015871,2]
[323125203,1713690637968,-200.0,0.00015871,2]
[323125204,1713690637977,-201.6872357,0.0001588,2]
[323125205,1713690637986,-245.109649,0.0001589,2]
[323125206,1713690637996,-2737.84,0.00015897,2]
[323125207,1713690638005,-3286.8058,0.00015898,2]
[323125209,1713690638014,-4367.71380482,0.00015899,2]
[323125211,1713690638024,-180.16217753,0.00015899,2]
[323125214,1713690638034,-10.80123687,0.00015899,2]
[323125216,1713690638046,-667.1606793,0.00015899,2]
[323125218,1713690638055,-191.64669312,0.00015899,2]
[323125220,1713690638064,-13141.19250785,0.00015899,2]
[323125224,1713690638092,-1122.18930899,0.00015899,2]
[323125227,1713690638116,-135.44558019,0.00015899,2]
[323125229,1713690638125,-37824.67215305,0.00015899,2]
[323125231,1713690638133,-155.0,0.000159,2]
[323125233,1713690638142,-482.0,0.000159,2]
[323125235,1713690638151,-892.54868,0.000159,2]
[323125238,1713690638162,-7243.72340618,0.000159,2]
[323125396,1713690639647,-1279.0324112,0.000159,2]
[323125431,1713690639968,-1434.8542506,0.000159,2]
[323125435,1713690640022,-2649.24567262,0.000159,2]
[323125436,1713690640032,-10000.0,0.000159,2]
[323125437,1713690640041,-1690.27703321,0.000159,2]
[323125438,1713690640078,-310.15354892,0.000159,2]
[323125521,1713691037241,26225.0,0.0002,30]
[323125522,1713691044553,-689.21,0.00012969,2]
[323125523,1713691044576,-598.6796,0.000139,2]
[323125524,1713691044599,-1750.0,0.00014,2]
[323125531,1713691584551,674.66,0.00012901,2]
[323125543,1713691831745,-238.17197704,0.00014784,2]
[323125544,1713691831755,-200.0,0.00014785,2]
[323125545,1713691831765,-151.06,0.00014785,2]
[323125546,1713691831776,-910.29,0.00014785,2]
[323125547,1713691831788,-167.41,0.00014812,2]
[323125548,1713691831799,-500.0,0.00014812,2]
[323125549,1713691831810,-1207.72,0.00014818,2]
[323125550,1713691831819,-228.32,0.00014818,2]
[323125551,1713691831828,-776.23,0.00014839,2]
[323125552,1713691831837,-323.80854154,0.00015,2]
[323125553,1713691831846,-674.66,0.00015165,2]
[323125554,1713691831856,-220.598684,0.00015342,2]
[323125555,1713691831867,-87.10858435,0.000155,2]
[323125556,1713691832028,-62.89141565,0.000155,2]
[323125557,1713691832039,-1000.0,0.000156,2]
[323125558,1713691832050,-150.0,0.00015692,2]
[323125570,1713691832277,-116.13628435,0.000157,2]
[323125574,1713691832304,-1509.49046978,0.000157,2]
[323125630,1713691837864,-86.68604587,0.000157,2]
[323125632,1713691837874,-1554.33935307,0.00015719,2]
[323125643,1713691837981,-22783.39499983,0.00015719,2]
[323125644,1713691838099,-4030.76976188,0.00015719,2]
[323125645,1713691838109,-153.31735452,0.00015731,2]
[323125646,1713691838120,-824.8666,0.0001574,2]
[323125647,1713691838129,-297.779814,0.00015741,2]
[323125649,1713691838139,-151.0,0.00015741,2]
[323125650,1713691838148,-151.0,0.00015741,2]
[323125651,1713691838157,-151.0,0.00015741,2]
[323125652,1713691838167,-151.0,0.00015741,2]
[323125653,1713691838176,-151.0,0.00015741,2]
[323125654,1713691838186,-151.0,0.00015741,2]
[323125656,1713691838195,-151.0,0.00015741,2]
[323125658,1713691838204,-151.0,0.00015741,2]
[323125660,1713691838213,-151.0,0.00015741,2]
[323125662,1713691838222,-151.0,0.00015741,2]
[323125664,1713691838231,-193.661056,0.00015741,2]
[323125666,1713691838239,-151.0,0.00015741,2]
[323125668,1713691838248,-151.0,0.00015741,2]
[323125670,1713691838261,-151.0,0.00015741,2]
[323125672,1713691838269,-151.0,0.00015741,2]
[323125674,1713691838278,-151.0,0.00015741,2]
[323125676,1713691838287,-151.0,0.00015741,2]
[323125678,1713691838297,-757.303563,0.00015741,2]
[323125680,1713691838306,-757.303563,0.00015741,2]
[323125682,1713691838314,-757.303563,0.00015741,2]
[323125684,1713691838323,-757.303563,0.00015741,2]
[323125686,1713691838333,-153.31735448,0.00015773,2]
[323125687,1713691838343,-151.34,0.0001579,2]
[323125689,1713691838353,-180.16217753,0.00015799,2]
[323125692,1713691838362,-1037.82,0.000158,2]
[323125693,1713691838372,-1000.0,0.000158,2]
[323125695,1713691838382,-531.75195237,0.000158,2]
[323125777,1713691839894,-468.24804763,0.000158,2]
[323125778,1713691839904,-980.2486883,0.000158,2]
[323125779,1713691840288,-19.7513117,0.000158,2]
[323125780,1713691840297,-370.6955233,0.000158,2]
[323125894,1713691842855,-629.3044767,0.000158,2]
[323125895,1713691842864,-301.82831289,0.000158,2]
[323125896,1713691842962,-741.79168711,0.000158,2]
[323125897,1713691842972,-40.03990289,0.000158,3]
[323125898,1713691843028,-911.96009711,0.000158,3]
[323125899,1713691843037,-733.83990209,0.000158,3]
[323125900,1713691843075,-266.16009791,0.000158,3]
[323125901,1713691843084,-1000.0,0.000158,2]
[323125902,1713691843093,-1000.0,0.000158,2]
[323125903,1713691843102,-1000.0,0.000158,2]
[323125904,1713691843112,-426.81378788,0.000158,2]
[323125905,1713691843245,-573.18621212,0.000158,2]
[323125906,1713691843254,-1000.0,0.000158,2]
[323125907,1713691843268,-1000.0,0.000158,2]
[323125908,1713691843277,-75216.24021742,0.000158,5]
[323125917,1713691846325,-323.80854154,0.00015799,2]
[323125919,1713691846335,-242231.90543926,0.000158,5]
[323125921,1713691846383,-810.70619471,0.000158,5]
[323125938,1713692044057,645.03,0.0001297,2]
[323125942,1713692531653,1750.0,0.00014,2]
[323125944,1713692581593,630.64,0.00012641,2]
[323125961,1713693032182,-756.03810701,0.00014123,2]
[323125962,1713693032290,-304.49075146,0.00014123,2]
[323125963,1713693032302,-786.99155585,0.00014123,2]
[323125964,1713693032312,-3080.15233842,0.00014124,2]
[323125965,1713693032323,-1000.0,0.00014216,2]
[323125966,1713693032333,-500.0,0.00014228,2]
[323125967,1713693032343,-748.3,0.00014245,2]
[323125968,1713693032352,-500.0,0.0001438,2]
[323125969,1713693032362,-382.72,0.00014408,2]
[323125970,1713693032371,-150.0,0.00014558,2]
[323125971,1713693032380,-940.72,0.00014559,2]
[323125972,1713693032391,-158.4,0.00014596,2]
[323125973,1713693032400,-150.99,0.00014596,2]
[323125974,1713693032410,-174.12,0.00014639,2]
[323125975,1713693032419,-228.32,0.00014687,2]
[323125976,1713693032429,-193.3586,0.00014778,2]
[323125977,1713693032439,-150.0,0.00014795,2]
[323125978,1713693032448,-156.09,0.00014814,2]
[323125979,1713693032457,-156.09,0.00014832,2]
[323125980,1713693032466,-160.5873794,0.00014847,2]
[323125981,1713693032475,-156.09,0.00014851,2]
[323125982,1713693032484,-156.09,0.0001487,2]
[323125983,1713693032494,-156.09,0.00014888,2]
[323125984,1713693032504,-630.64,0.00014905,2]
[323125985,1713693032513,-750.0,0.00015,2]
[323125986,1713693032523,-323.80854154,0.00015482,2]
[323125987,1713693032533,-157.46268323,0.00015483,2]
[323125988,1713693032543,-499.99,0.00015483,2]
[323125989,1713693032552,-414.66,0.00015483,2]
[323125990,1713693032562,-150.0,0.00015532,2]
[323125991,1713693032574,-1006.0,0.000156,2]
[323125992,1713693032585,-21276.3780861,0.00015604,2]
[323125993,1713693032595,-198.538816,0.00015616,2]
[323125994,1713693032606,-153.31735448,0.00015683,2]
[323125995,1713693032617,-593.21667664,0.00015683,2]
[323125996,1713693032627,-4726.9461132,0.00015699,2]
[323125997,1713693032637,-26467.73706665,0.000157,2]
[323126022,1713693038065,-37240.92673159,0.000157,2]
[323126025,1713693040112,-22971.44440176,0.000157,2]
[323126026,1713693040122,-6517.18710192,0.000157,2]
[323126027,1713693040159,-642.97969301,0.000157,2]
[323126064,1713693043026,-6488.08632,0.000157,2]
[323126088,1713693069266,601.52,0.00012938,2]
[323126100,1713693586852,588.15,0.00012687,2]
[323126121,1713693907358,169.55226304,0.00014082,2]
[323126123,1713693914675,523.86545643,0.00014081,2]
[323126126,1713693955159,424.95157185,0.00013425,2]
[323126129,1713694145249,574.61,0.0001261,2]
[323126130,1713694174356,-1060.52885847,0.00014176,2]
[323126131,1713694174379,-8020.03493351,0.00014176,2]
[323126132,1713694174402,-712.50304557,0.00014177,2]
[323126133,1713694174425,-734.98,0.00014387,2]
[323126155,1713694232488,-150.0,0.00014496,2]
[323126156,1713694232497,-744.25649274,0.00014531,2]
[323126157,1713694232509,-166.52350726,0.00014531,2]
[323126158,1713694232519,-151.06,0.00014625,2]
[323126159,1713694232529,-683.1,0.00014686,2]
[323126161,1713694232538,-786.99155585,0.000148,2]
[323126162,1713694232547,-499.99,0.000148,2]
[323126165,1713694232557,-574.61,0.00014874,2]
[323126167,1713694232567,-2215.04376637,0.00014909,2]
[323126168,1713694232577,-414.8,0.00014913,2]
[323126171,1713694232586,-323.85652974,0.00014913,2]
[323126173,1713694232596,-323.80854154,0.00015,2]
[323126175,1713694232609,-348.82,0.00015341,2]
[323126176,1713694232618,-178.684934,0.00015342,2]
[323126177,1713694232627,-5000.0,0.000155,2]
[323126178,1713694232637,-8000.0,0.000155,2]
[323126179,1713694232646,-8000.0,0.00015525,2]
[323126180,1713694232655,-4751.07623019,0.00015531,2]
[323126181,1713694232668,-248.92376981,0.00015531,2]
[323126182,1713694232678,-852.83109,0.0001554,2]
[323126183,1713694232689,-8000.0,0.0001555,2]
[323126184,1713694232699,-431.46039117,0.0001555,2]
[323126185,1713694232710,-5000.0,0.00015563,2]
[323126186,1713694232720,-8000.0,0.00015575,2]
[323126187,1713694232730,-5000.0,0.00015594,2]
[323126188,1713694232742,-5448.2749,0.000156,2]
[323126189,1713694232753,-11116.4053097,0.000156,2]
[323126205,1713694238253,-4022.7165844,0.000156,2]
[323126206,1713694238514,-2093.9074435,0.000156,2]
[323126207,1713694238525,-702.77405617,0.000156,2]
[323126208,1713694238537,-378.61802541,0.000156,2]
[323126209,1713694238623,-9797.85808281,0.000156,2]
[323126210,1713694238637,-4899.94009801,0.000156,2]
[323126211,1713694238646,-2602.55992862,0.000156,2]
[323126261,1713694456376,3500.0,0.000144,2]
[323126262,1713694471339,3500.0,0.000144,2]
[323126263,1713694496797,3500.0,0.000144,2]
[323126264,1713694521500,3100.0,0.000144,2]
[323126284,1713694650982,562.95,0.00012685,2]
[323126476,1713694894100,378.438,0.000144,2]
[323126477,1713694904923,571.29408729,0.00014493,7]
[323126478,1713695007580,161.47439017,0.00014392,2]
[323126479,1713695063931,571.29408729,0.00014488,7]
[323126499,1713695160851,561.75,0.00012489,2]
[323126500,1713695170492,11586.57,0.00014379,2]
[323126501,1713695211419,542.8,0.00014379,2]
[323126516,1713695432609,-1128.39057253,0.00014426,2]
[323126517,1713695432620,-1294.9396767,0.00014427,2]
[323126518,1713695432630,-786.99155585,0.00014427,2]
[323126519,1713695432639,-608.66,0.00014428,2]
[323126520,1713695432650,-5346.68995567,0.00014475,2]
[323126521,1713695432660,-463.63547377,0.00014476,2]
[323126522,1713695432670,-532.89332388,0.00014483,2]
[323126523,1713695432679,-1000.0,0.00014496,2]
[323126524,1713695432689,-167.8,0.000145,2]
[323126525,1713695432698,-164.44,0.00014526,2]
[323126526,1713695432707,-174.07,0.00014649,2]
[323126527,1713695432717,-499.99,0.00014649,2]
[323126528,1713695432727,-200.7002902,0.00014752,2]
[323126529,1713695432740,-267.95,0.00014752,2]
[323126530,1713695432821,-93.0997098,0.00014752,2]
[323126531,1713695432830,-3180.18036638,0.00014809,2]
[323126532,1713695432840,-164.44,0.00014904,2]
[323126533,1713695432849,-999.51691893,0.00014913,2]
[323126534,1713695432858,-750.0,0.00015,2]
[323126535,1713695432868,-721.12,0.00015,2]
[323126536,1713695432877,-3068.14352187,0.00015,2]
[323126537,1713695432887,-323.80854154,0.00015,2]
[323126538,1713695432896,-187.619149,0.00015068,2]
[323126539,1713695432905,-164.44,0.00015283,2]
[323126540,1713695432915,-710.69257,0.0001544,2]
[323126541,1713695432924,-1501.843,0.0001549,2]
[323126542,1713695432934,-2148.62550738,0.00015499,2]
[323126543,1713695432943,-5000.0,0.000155,2]
[323126544,1713695432952,-163.85123848,0.000155,2]
[323126545,1713695432961,-8000.0,0.000155,2]
[323126546,1713695432971,-154.17258648,0.000155,2]
[323126547,1713695432981,-150.0,0.000155,2]
[323126548,1713695432990,-15957.28356456,0.000155,2]
[323126549,1713695433000,-1500.0,0.000155,5]
[323126550,1713695433009,-153.31735448,0.000155,2]
[323126551,1713695433019,-342.06207086,0.000155,2]
[323126552,1713695433030,-8000.0,0.00015525,2]
[323126553,1713695433040,-342.06207084,0.00015528,2]
[323126554,1713695433049,-1762.04117515,0.00015531,2]
[323126555,1713695433074,-3237.95882485,0.00015531,2]
[323126556,1713695433084,-150.51,0.00015534,2]
[323126557,1713695433093,-150.0,0.00015534,2]
[323126558,1713695433103,-150.0,0.00015534,2]
[323126559,1713695433113,-150.0,0.00015534,2]